[Event "21st IPCA World Championship 2022"]
[Site "Ashdod"]
[Date "2022.05.10"]
[Round "3.6"]
[White "Alperovich, Asher"]
[Black "Valenta, Vit Vaclav"]
[Result "0-1"]
[ECO "E76"]
[WhiteElo "1865"]
[BlackElo "2014"]
[Annotator "TA"]
[PlyCount "60"]
[EventDate "2022.05.09"]
[EventType "swiss"]
[EventCountry "ISR"]
[SourceTitle "playchess.com"]
[Source "ChessBase"]
[SourceQuality "1"]
[TimeControl "5400+30"]

{[%evp 15,60,33,49,69,113,108,108,97,126,123,138,132,153,118,130,120,132,126,125,86,143,47,154,84,210,200,209,204,204,204,422,-42,-26,-150,18,23,26,-19,-9,-28,-16,-87,-82,-235,-230,-1230,-1155]} 1. d4 {[%emt 0:00:32]} c5 {[%emt 0:00:24]} 2. d5 {[%emt 0:00:11]} d6 {[%emt 0:00:08]} 3. c4 {[%emt 0:00:10]} Nf6 {[%emt 0:00:12]} 4. Nc3 {[%emt 0:00:09]} g6 {[%emt 0:00:05]} 5. e4 {[%emt 0:00:29]} Bg7 {[%emt 0:00:06]} 6. f4 {[%emt 0:00:08]} O-O {[%emt 1:32:35]} 7. Nf3 {[%emt 0:00:06]} a6 {[%emt 0:00:00]} 8. a4 {[%emt 0:01:50]} e5 {[%emt 0:00:00] was the old line (8...e6).} 9. fxe5 {[%emt 0:02:58] E76: King's Indian: Four Pawns Attack: Lines specific to 6 Nf3 move-order.} dxe5 {[%emt 0:00:00]} (9... Ng4) 10. Bg5 {[%emt 0:02:00]} (10. Nxe5 Re8 11. Nf3 (11. Bf4 Nxe4 12. Nxe4 Bxe5) 11... Nxe4 12. Nxe4 f5) ({Stronger than} 10. Nxe5 Re8 11. Nf3 (11. Bf4 $2 Nxe4 12. Nxe4 Bxe5 $19) 11... Nxe4 12. Nxe4 f5 $17) 10... h6 {[%emt 0:00:00]} 11. Bh4 {[%emt 1:27:27] [#] White is better.} Nbd7 $146 {[%emt 0:00:00]} (11... Qd6 12. Bd3 Ne8 13. Qd2 f5 14. Bf2 Nd7 15. a5 b6 16. Nh4 f4 17. axb6 Rf7) ({Predecessor:} 11... Qd6 12. Bd3 Ne8 13. Qd2 f5 14. Bf2 Nd7 15. a5 b6 16. Nh4 f4 17. axb6 Rf7 {½-½ (50) Willsch,M-Bollow,T Bargteheide 1989}) 12. Bd3 {[%emt 0:00:00]} Re8 {[%emt 0:00:00]} 13. O-O {[%emt 0:00:00]} g5 {[%emt 0:00:00]} 14. Bg3 {[%emt 0:00:00]} Nh5 {[%emt 0:00:00]} 15. Be1 {[%emt 0:00:00][%cal Of3g5]} Nf4 {[%emt 0:00:00]} 16. Bc2 {[%emt 0:00:00]} (16. a5) 16... Nf6 {[%emt 0:00:00]} 17. Qd2 {[%emt 0:00:00]} N6h5 {[%emt 0:00:00]} (17... b6) (17... b6 $142) 18. Nd1 {[%emt 0:00:00]} (18. a5) (18. a5 $16) 18... Bf6 {[%emt 0:00:00]} (18... g4) (18... g4 $14) 19. h3 {[%emt 0:00:00]} (19. Kh1) (19. Kh1 $142 $1) 19... Nxg2 {[%emt 0:00:00]} 20. Qxg2 $18 {[%emt 0:00:00]} Nf4 {[%emt 0:00:00]} 21. Qh2 {[%emt 0:00:00]} Bxh3 {[%emt 0:00:00]} 22. Ne3 {[%emt 0:00:00]} g4 $2 {[%emt 0:00:00] [#]} (22... Bxf1 {is a better defense.} 23. Kxf1 h5) 23. Nf5 $2 {[%emt 0:00:00]} gxf3 $15 {[%emt 0:00:00]} 24. Nxh6+ {[%emt 0:00:00]} (24. Rxf3 $11 {was the only way to keep the balance.} Bxf5 25. exf5) 24... Kh7 $2 {[%emt 0:00:00] [#] The board is on fire. Black is much more active. The white rooks are badly placed.} ({Black should try} 24... Kg7 $1 $17 25. Rxf3 Rh8) 25. Rxf3 $1 $11 {[%emt 0:00:00]} Kxh6 {[%emt 0:00:00][%cal Bh7h6,Bh6g7,Bg7f8,Bf8e7][%mdl 32]} (25... Bh4 $2 26. Rxf4 Qg5+ 27. Ng4 $1 {[%mdl 512]} Qxf4 28. Qxh3 Qxg4+ 29. Qxg4 $18) 26. Rxh3+ {[%emt 0:00:00]} Nxh3+ {[%emt 0:00:00]} 27. Qxh3+ {[%emt 0:00:00]} Kg7 {[%emt 0:00:00] Black wants to play ...Rh8.} 28. Qg4+ {[%emt 0:00:00]} (28. Bf2 Rh8 29. Qg2+ Kf8 30. Bxc5+ Be7) (28. Qg3+ Kf8 29. Bf2) ({Much worse is} 28. Bf2 Rh8 29. Qg2+ Kf8 $17) (28. Qg3+ $11 {keeps the balance.} Kf8 29. b4) 28... Kf8 $17 {[%emt 0:00:00]} 29. Bd2 $2 {[%emt 0:00:00] [#]} (29. b4) (29. Bf2 $17 {keeps fighting.} Rc8 30. Qf5) 29... Ke7 $1 $19 {[%emt 0:00:00] ...Rg8 is the strong threat.} 30. d6+ $2 {[%emt 0:00:00]} (30. Qf5) (30. Qf3) 30... Qxd6 {[%emt 0:00:00] Black used his chance.  Weighted Error Value: White=0.89/Black=0.39} 0-1

[Event "21st IPCA World Championship 2022"]
[Site "Ashdod"]
[Date "2022.05.10"]
[Round "3.7"]
[White "Cosic, Radoslav"]
[Black "Frumin, Rebeka"]
[Result "1-0"]
[ECO "A05"]
[WhiteElo "2003"]
[BlackElo "1319"]
[Annotator "TA"]
[PlyCount "54"]
[EventDate "2022.05.09"]
[EventType "swiss"]
[EventCountry "ISR"]
[SourceTitle "playchess.com"]
[Source "ChessBase"]
[SourceQuality "1"]
[TimeControl "5400+30"]

{[%evp 9,54,6,11,8,8,0,-2,-9,18,0,-3,-4,16,0,52,52,45,52,54,56,85,86,240,237,245,228,231,209,210,172,214,205,591,174,674,659,761,752,973,838,820,766,785,748,889,914,967]} 1. Nf3 {[%emt 0:02:12]} Nf6 {[%emt 0:00:53]} 2. b3 {[%emt 0:00:54]} g6 {[%emt 0:01:03]} 3. Bb2 {[%emt 0:00:10]} Bg7 {[%emt 0:00:52]} 4. g3 {[%emt 0:00:10]} b6 {[%emt 0:01:09]} 5. Bg2 {[%emt 0:00:04]} Bb7 {[%emt 0:00:18]} 6. O-O {[%emt 0:00:03] A05: Réti Opening: 1 Nf3 Nf6.} O-O {[%emt 0:01:11]} 7. d3 {[%emt 0:00:47]} d5 {[%emt 0:01:42] 7...c5 is setting a new trend.} 8. c4 {[%emt 0:01:14] The position is equal.} c6 {[%emt 0:01:52]} 9. Qc2 {[%emt 0:00:38]} c5 {[%emt 0:01:47]} 10. cxd5 {[%emt 0:00:34]} Bxd5 {[%emt 0:00:53]} 11. Nc3 {[%emt 0:00:56] [#]} Nc6 $146 {[%emt 0:01:33]} ({Better is} 11... Bb7 $11) ({Predecessor:} 11... Bb7 12. Rad1 Nc6 13. Qb1 Nd4 14. Nxd4 Bxg2 15. Ne6 Qc8 16. Kxg2 Qxe6 17. Qa1 Rfd8 {½-½ (61) Bianco,V (2151)-Halfhide,S (1916) Hastings 2014}) 12. Nxd5 $14 {[%emt 0:00:24]} Nxd5 {[%emt 0:00:29]} 13. Bxg7 {[%emt 0:00:11]} Kxg7 {[%emt 0:00:18]} 14. Qb2+ {[%emt 0:01:48]} Nf6 {[%emt 0:01:53]} 15. Ne5 {[%emt 0:01:55]} Nd4 {[%emt 0:02:05] [#] This move loses the game for Black.} 16. e3 $18 {[%emt 0:01:13]} Ne6 {[%emt 0:00:59]} 17. Bxa8 {[%emt 0:01:27]} Qxa8 {[%emt 0:00:17]} 18. f4 {[%emt 0:00:24]} Kg8 {[%emt 0:01:13]} 19. Qg2 {[%emt 0:02:07]} Qd8 {[%emt 0:01:35]} 20. Rad1 {[%emt 0:00:32]} Nd5 $2 {[%emt 0:01:32]} (20... Qb8 {is more resistant.} 21. g4 Qc7) 21. Rfe1 $2 {[%emt 0:00:33]} (21. Nc6 Nxe3 22. Nxd8 Nxg2 23. Nxe6 (23. Kxg2 Rxd8 24. Rd2 Nd4 $11) 23... fxe6 24. Kxg2) 21... Ng7 $2 {[%emt 0:05:04]} (21... Qd6 22. Rd2 Rd8) 22. Nc6 {[%emt 0:00:22][%csl LRa7,LRd8] White is clearly winning.} Qd7 {[%emt 0:01:05] [#]} 23. Qxd5 {[%emt 0:00:14][%mdl 512]} Qh3 {[%emt 0:01:17]} (23... Qb7 24. d4) 24. Qg2 {[%emt 0:00:37]} Qd7 {[%emt 0:00:32]} 25. Ne5 {[%emt 0:00:08]} Qe6 {[%emt 0:01:14]} 26. g4 {[%emt 0:00:21][%cal Bg3g4,Bg4g5][%mdl 32]} f5 {[%emt 0:00:48]} 27. g5 {[%emt 0:00:34]} Nh5 {[%emt 0:00:41] Weighted Error Value: White=0.46/Black=0.97} 1-0

[Event "21st IPCA World Championship 2022"]
[Site "Ashdod"]
[Date "2022.05.10"]
[Round "3.8"]
[White "Babanov, Aleksandr"]
[Black "Vardi, Moshe"]
[Result "1-0"]
[ECO "C45"]
[WhiteElo "1929"]
[BlackElo "1631"]
[Annotator "TA"]
[PlyCount "80"]
[EventDate "2022.05.09"]
[EventType "swiss"]
[EventCountry "ISR"]
[SourceTitle "playchess.com"]
[Source "ChessBase"]
[SourceQuality "1"]
[TimeControl "5400+30"]

{[%evp 11,80,0,0,-12,14,15,19,11,35,35,56,34,61,67,64,35,53,45,50,40,43,28,45,31,82,46,52,30,143,48,52,51,199,26,139,148,148,148,133,147,255,256,268,264,258,250,242,245,342,356,364,355,450,412,506,482,620,601,566,517,29974,29975,29975,29976,29976,29977,29977,29978,29977,29978,29978]} 1. e4 {[%emt 0:00:07]} e5 {[%emt 0:06:16]} 2. Nf3 {[%emt 0:00:07]} Nc6 {[%emt 1:25:14]} 3. Nc3 {[%emt 1:31:46]} Nf6 {[%emt 0:00:00]} 4. d4 {[%emt 0:00:00]} exd4 {[%emt 0:00:00]} 5. Nxd4 {[%emt 0:00:00]} Bc5 {[%emt 0:00:00]} 6. Nb3 {[%emt 0:00:00]} (6. Be3 Bb4 7. Nxc6 Bxc3+ 8. bxc3 bxc6 9. f3) 6... Bb6 {[%emt 0:00:00]} 7. Qe2 {[%emt 0:00:00] C45: Scotch Game.} O-O {[%emt 0:00:00]} (7... a5 $5 {[%cal Ra5a4]}) 8. Be3 {[%emt 0:00:00]} Bxe3 {[%emt 0:00:00]} (8... Re8) (8... d5 {is more complex.} 9. O-O-O d4 10. Bg5 Qd6) 9. Qxe3 {[%emt 0:00:00] The position is equal.} d6 {[%emt 0:00:00]} 10. O-O-O {[%emt 0:00:00]} a5 {[%emt 0:00:00]} 11. a3 {[%emt 0:00:00]} Re8 {[%emt 0:00:00]} 12. f3 {[%emt 0:00:00] [#]} Qe7 $146 {[%emt 0:00:00]} ({Predecessor:} 12... Ne5 13. g4 c6 14. g5 Nh5 15. Kb1 Be6 16. Nd4 Qb6 17. Qd2 Bc4 18. Be2 Bxe2 19. Ncxe2 {1-0 (33) Howell,D (2644)-Neelotpal,D (2463) Doha 2016}) 13. Qd2 {[%emt 0:00:00]} (13. g4) 13... a4 {[%emt 0:00:00]} 14. Nd4 {[%emt 0:00:00]} Nxd4 $1 {[%emt 0:00:00]} 15. Qxd4 {[%emt 0:00:00]} Bd7 {[%emt 0:00:00]} 16. Bc4 {[%emt 0:00:00]} Ra5 {[%emt 0:00:00]} 17. Rhe1 {[%emt 0:00:00]} Rb8 {[%emt 0:00:00]} (17... Rh5 $14) 18. Nd5 {[%emt 0:00:00]} Nxd5 {[%emt 0:00:00]} 19. Bxd5 {[%emt 0:00:00]} (19. exd5 Qf8 20. Kb1) 19... b5 {[%emt 0:00:00] [#]} (19... Be6) (19... Be6 $11) 20. Qd2 {[%emt 0:00:00] White is more active.} (20. e5) (20. e5 $1 $16 {aiming for Qb4.} Qf8 21. exd6 cxd6 22. Re4) 20... Ra6 $14 {[%emt 0:00:00][%cal Ob5b4]} 21. e5 {[%emt 0:00:00] Black must now prevent exd6.} Rab6 {[%emt 0:00:00]} ({Black should try} 21... Be6 $14) 22. Qf4 $2 {[%emt 0:00:00]} (22. exd6 $18 Qxd6 {[#]} 23. Bxf7+ $1 {[%mdl 512]} Kxf7 24. Qg5) 22... dxe5 {[%emt 0:00:00] [#]} (22... Qf8 $1 $11) 23. Qxf7+ $1 {[%emt 0:00:00][%mdl 576] Decoy} Qxf7 {[%emt 0:00:00]} 24. Bxf7+ {[%emt 0:00:00][%mdl 64] Discovered Attack} Kxf7 {[%emt 0:00:00]} 25. Rxd7+ $11 {[%emt 0:00:00][%mdl 4096] Endgame KRR-KRR} Ke6 {[%emt 0:00:00]} (25... Kf6 $16 {is a better defense.} 26. Rxc7 b4) 26. Rxg7 $18 {[%emt 0:00:00]} b4 {[%emt 0:00:00]} 27. Rxh7 {[%emt 0:00:00]} ({Don't take} 27. Rxc7 bxa3 28. bxa3 Rb1+ 29. Kd2 Rd8+ 30. Ke2 Rb2 $18) 27... bxa3 {[%emt 0:00:00]} 28. bxa3 {[%emt 0:00:00]} Rb1+ {[%emt 0:00:00]} 29. Kd2 {[%emt 0:00:00]} Rd8+ {[%emt 0:00:00]} 30. Ke2 {[%emt 0:00:00]} Rxe1+ {[%emt 0:14:00]} 31. Kxe1 {[%emt 0:14:00] KR-KR} c5 {[%emt 0:00:00]} 32. Rh6+ {[%emt 0:00:00]} Kf5 {[%emt 0:00:00]} 33. Rc6 {[%emt 0:00:00]} Rd5 {[%emt 0:00:00]} 34. Ke2 {[%emt 0:00:00]} e4 {[%emt 0:00:00]} 35. g4+ {[%emt 0:00:00]} Kf4 {[%emt 0:00:00]} (35... Ke5 $18 36. h3 Kf4) 36. Rf6+ {[%emt 0:00:00] White mates.} Kg5 {[%emt 0:00:00]} 37. Rf5+ {[%emt 0:00:00]} Rxf5 {[%emt 0:00:00]} 38. gxf5 {[%emt 0:00:00]} Kxf5 {[%emt 0:00:00]} 39. fxe4+ {[%emt 0:00:00]} Kxe4 {[%emt 0:00:00]} 40. Kd2 {[%emt 0:00:00]} Kd5 {[%emt 0:05:00] Weighted Error Value: White=0.21 (precise) /Black=0.65} 1-0

[Event "21st IPCA World Championship 2022"]
[Site "Ashdod"]
[Date "2022.05.10"]
[Round "3.9"]
[White "Mekus, Manuela"]
[Black "Shapiro, Benny"]
[Result "1/2-1/2"]
[ECO "C00"]
[WhiteElo "1644"]
[BlackElo "1884"]
[Annotator "NA RC COMBH"]
[PlyCount "88"]
[EventDate "2022.05.09"]
[EventType "swiss"]
[EventCountry "ISR"]
[SourceTitle "playchess.com"]
[Source "ChessBase"]
[SourceQuality "1"]
[TimeControl "5400+30"]

{[%evp 14,85,-3,-8,32767,-3,32767,12,31,32,31,13,61,52,40,39,36,14,25,-9,15,0,32767,32767,32767,-112,-107,32767,-133,-157,-84,-107,-112,-245,-92,-98,-100,-90,77,59,37,0,0,0,97,106,103,194,32767,32767,32767,32767,32767,32767,32767,32767,32767,32767,32767,32767,118,32767,32767,32767,32767,32767,0,32767,32767,32767,32767,32767,32767,26]} 1. e4 {[%emt 0:03:13]} c5 {[%emt 0:00:14]} 2. d3 {[%emt 0:00:55]} Nc6 {[%emt 0:00:14]} 3. Nf3 {[%emt 0:00:30]} Nf6 {[%emt 0:00:49]} 4. g3 {[%emt 0:00:08]} e6 {[%emt 0:00:28]} 5. Bg2 {[%emt 0:00:16]} d5 {[%emt 0:00:25]} 6. Nbd2 {[%emt 0:01:07]} Be7 {[%emt 0:01:10]} 7. O-O {[%emt 0:00:12]} O-O $11 {[%emt 0:00:17]} 8. c3 {[%emt 0:01:55]} d4 {[%emt 0:04:08]} 9. Nc4 {[%emt 0:07:41]} Ne8 {[%emt 0:04:23]} 10. a4 {[%emt 0:06:02]} (10. cxd4 $14 cxd4 11. Re1) 10... f6 {[%emt 0:00:46]} 11. e5 {[%emt 0:04:22]} f5 $1 {[%emt 0:02:06]} 12. h4 {[%emt 0:01:49]} Nc7 {[%emt 0:01:19]} (12... h6 $1 $11) 13. Bg5 {[%emt 0:00:40]} Nd5 {[%emt 0:02:32]} 14. Bxe7 {[%emt 0:00:48]} Qxe7 {[%emt 0:01:43]} 15. Rc1 {[%emt 0:02:39]} Bd7 {[%emt 0:01:58]} 16. Ng5 {[%emt 0:04:55]} (16. Re1 $14 {is superior.}) 16... b6 {[%emt 0:02:22]} 17. f4 {[%emt 0:06:18]} Rab8 {[%emt 0:01:00]} 18. Nd6 {[%emt 0:03:03]} Ne3 {[%emt 0:01:30]} 19. Qh5 {[%emt 0:02:20]} g6 {[%emt 0:01:22]} 20. Qf3 {[%emt 0:03:55]} Na5 {[%emt 0:02:20]} ({Weaker is} 20... Nxf1 21. Qxf1 dxc3 22. bxc3) (20... h6 $19 21. Nh3 Na5 22. cxd4 Nxf1 23. Rxf1 Nb3) 21. Rf2 {[%emt 0:02:08] [#]} (21. cxd4 $142 Nxf1 22. Qxf1) 21... Bxa4 {[%emt 0:02:53]} ({Stronger than} 21... Bc6 22. Qe2 $17) (21... h6 $1 $19 {[%cal Rh6g5] is more deadly.} 22. Nh3 Bc6) 22. cxd4 {[%emt 0:02:21]} cxd4 {[%emt 0:00:27]} 23. Bf1 $2 {[%emt 0:00:46]} (23. h5 $1 $11 {and White stays safe.}) 23... Bb3 $2 {[%emt 0:01:37]} (23... h6 $19 {is more deadly.} 24. Nh3 Bb3) 24. h5 {[%emt 0:00:45] [#]} Bd5 $1 {[%emt 0:00:32]} 25. Qe2 {[%emt 0:01:28]} Ng4 $2 {[%emt 0:00:37]} (25... Nb3 $17 {keeps the pressure on.} 26. Re1 Qg7) 26. hxg6 {[%emt 0:00:57]} hxg6 {[%emt 0:00:43] [#]} 27. Rh2 $1 {[%emt 0:00:52]} Nxh2 {[%emt 0:00:51]} 28. Qxh2 {[%emt 0:00:05]} Qg7 {[%emt 0:00:46] [#]} (28... Nb3 $11 {remains equal.} 29. Rc2 Na1) 29. Bg2 {[%emt 0:00:23]} (29. b4 $142 $1) 29... Bb3 {[%emt 0:01:44] [#]} 30. Kf2 $1 {[%emt 0:01:19]} Qh8 {[%emt 0:01:47]} 31. Qxh8+ {[%emt 0:00:23]} Kxh8 {[%emt 0:00:03]} 32. Rh1+ {[%emt 0:00:22]} Kg8 {[%emt 0:00:38]} 33. Rh7 {[%emt 0:00:41]} Rfc8 {[%emt 0:02:21]} 34. Nxc8 {[%emt 0:01:58]} Rxc8 {[%emt 0:00:07]} 35. Rxa7 {[%emt 0:00:24]} Rc2+ {[%emt 0:00:57]} 36. Kg1 {[%emt 0:00:27]} Rxb2 {[%emt 0:00:52]} (36... Rd2 $14) 37. Ra8+ {[%emt 0:00:13]} Kg7 {[%emt 0:00:18]} 38. Ra7+ {[%emt 0:00:04]} Kf8 {[%emt 0:00:22]} 39. Rf7+ {[%emt 0:00:52]} Ke8 $1 {[%emt 0:00:49]} 40. Rf6 {[%emt 0:00:18]} Kd7 {[%emt 0:01:12]} 41. Rxg6 {[%emt 0:00:04]} b5 {[%emt 0:01:45]} 42. Rg7+ {[%emt 0:00:25]} Kc8 {[%emt 0:02:20]} 43. Re7 {[%emt 0:00:23]} (43. Ra7 $14 Ra2 44. Ra8+ Kc7 45. Ra6) 43... Kd8 {[%emt 0:05:27]} 44. Ra7 {[%emt 0:00:16]} Ra2 {[%emt 0:00:41]} 1/2-1/2

[Event "21st IPCA World Championship 2022"]
[Site "Ashdod"]
[Date "2022.05.10"]
[Round "3.10"]
[White "Pilimon, Zbigniew"]
[Black "Klein, Djimmy"]
[Result "1-0"]
[ECO "E87"]
[WhiteElo "1620"]
[BlackElo "1392"]
[Annotator "NA RC COMBH"]
[PlyCount "99"]
[EventDate "2022.05.09"]
[EventType "swiss"]
[EventCountry "ISR"]
[SourceTitle "playchess.com"]
[Source "ChessBase"]
[SourceQuality "1"]
[TimeControl "5400+30"]

1. d4 {[%emt 0:00:08]} Nf6 {[%emt 0:00:10]} 2. c4 {[%emt 0:00:13]} g6 {[%emt 0:00:06]} 3. Nc3 {[%emt 0:00:15]} Bg7 {[%emt 0:00:09]} 4. e4 {[%emt 0:00:21]} d6 {[%emt 0:00:14]} 5. f3 {[%emt 0:01:40]} O-O {[%emt 0:01:55]} 6. Be3 {[%emt 0:00:22]} e5 {[%emt 0:04:11]} 7. d5 {[%emt 0:00:24]} Nbd7 {[%emt 0:02:42]} 8. Bd3 {[%emt 0:01:04]} Ne8 {[%emt 0:04:28]} 9. Qd2 {[%emt 0:01:12]} f5 {[%emt 0:03:23]} 10. exf5 {[%emt 0:00:56]} gxf5 {[%emt 0:00:16]} 11. Bg5 {[%emt 0:00:47]} Ndf6 {[%emt 0:00:27]} 12. Bh6 {[%emt 0:00:42]} Rf7 {[%emt 0:00:39]} 13. Bxg7 {[%emt 0:14:13]} Rxg7 {[%emt 0:03:57]} 14. O-O-O {[%emt 0:02:31]} c6 {[%emt 0:01:02]} 15. Nh3 {[%emt 0:08:11]} Bd7 {[%emt 0:03:31]} 16. Rhg1 {[%emt 0:00:30]} a5 {[%emt 0:08:09]} 17. Nf2 {[%emt 0:01:09]} a4 {[%emt 0:01:15]} 18. Bc2 {[%emt 0:03:18]} c5 {[%emt 0:03:47]} 19. h3 {[%emt 0:01:37]} Rg3 {[%emt 0:06:14]} 20. Ne2 {[%emt 0:00:27]} Rg7 {[%emt 0:01:03]} 21. g4 {[%emt 0:00:27]} f4 {[%emt 0:00:23]} 22. Nc3 {[%emt 0:01:21]} a3 {[%emt 0:01:24]} 23. b3 {[%emt 0:00:28]} Nc7 {[%emt 0:00:20]} 24. g5 {[%emt 0:08:10]} Nh5 {[%emt 0:00:59]} 25. Nce4 {[%emt 0:00:31]} Ne8 {[%emt 0:02:18]} 26. Bd3 {[%emt 0:02:24]} Kh8 {[%emt 0:00:25]} 27. Ng4 {[%emt 0:01:42]} Bf5 {[%emt 0:00:59]} 28. h4 {[%emt 0:03:17]} Bxe4 {[%emt 0:02:09]} 29. Bxe4 {[%emt 0:00:31]} Ng3 {[%emt 0:00:09]} 30. Bd3 {[%emt 0:04:03]} Rg8 {[%emt 0:05:01]} 31. Rg2 {[%emt 0:07:48]} b6 {[%emt 0:05:24]} 32. g6 {[%emt 0:00:32]} Ra7 {[%emt 0:00:50]} 33. h5 {[%emt 0:01:20]} Ng7 {[%emt 0:02:13]} 34. Nh6 {[%emt 0:01:57]} Rf8 {[%emt 0:01:53]} 35. Nf7+ {[%emt 0:02:53]} Rfxf7 {[%emt 0:00:21]} 36. gxf7 {[%emt 0:00:27]} Rxf7 {[%emt 0:00:11]} 37. h6 {[%emt 0:03:13]} N7f5 {[%emt 0:00:11]} 38. Bxf5 {[%emt 0:02:34]} Rxf5 {[%emt 0:00:14]} 39. Rh2 {[%emt 0:03:30]} Qf6 {[%emt 0:01:31]} 40. Qc3 {[%emt 0:02:29]} Rh5 {[%emt 0:01:19]} 41. Rhd2 {[%emt 0:00:53]} Rxh6 {[%emt 0:00:53]} 42. b4 {[%emt 0:00:47]} Rh3 {[%emt 0:07:10]} 43. bxc5 {[%emt 0:03:43]} bxc5 {[%emt 0:01:02]} 44. Qxa3 {[%emt 0:02:26]} Nf5 {[%emt 0:02:18]} 45. Rb2 {[%emt 0:02:24]} Ne3 {[%emt 0:00:34]} 46. Qa7 {[%emt 0:00:47]} Rg3 {[%emt 0:00:54]} 47. Rh1 {[%emt 0:00:27]} h6 {[%emt 0:03:15]} 48. Rb8+ {[%emt 0:05:50]} Rg8 {[%emt 0:01:08]} 49. Rg1 {[%emt 0:02:38]} Rf8 {[%emt 0:02:32]} 50. Qa8 {[%emt 0:01:46]} 1-0

[Event "21st IPCA World Championship 2022"]
[Site "Ashdod"]
[Date "2022.05.10"]
[Round "3.11"]
[White "Volodarsky, Michael"]
[Black "Oliel, Yehonatan"]
[Result "0-1"]
[ECO "E95"]
[WhiteElo "1400"]
[BlackElo "1535"]
[Annotator "NA RC COMBH"]
[PlyCount "76"]
[EventDate "2022.05.09"]
[EventType "swiss"]
[EventCountry "ISR"]
[SourceTitle "playchess.com"]
[Source "ChessBase"]
[SourceQuality "1"]
[TimeControl "5400+30"]

1. d4 {[%emt 0:00:17]} Nf6 {[%emt 0:00:16]} 2. c4 {[%emt 0:00:15]} g6 {[%emt 0:00:15]} 3. Nc3 {[%emt 0:00:07]} Bg7 {[%emt 0:00:25]} 4. e4 {[%emt 0:00:06]} d6 {[%emt 0:01:07]} 5. Nf3 {[%emt 0:00:16]} O-O {[%emt 0:00:21]} 6. Be2 {[%emt 0:00:13]} Nbd7 {[%emt 0:01:10]} 7. O-O {[%emt 0:00:39]} Re8 {[%emt 0:01:12]} 8. Re1 {[%emt 0:04:18]} e5 {[%emt 0:02:16]} 9. d5 {[%emt 0:02:58]} c6 {[%emt 0:03:27]} 10. dxc6 {[%emt 0:01:36]} Nc5 {[%emt 0:00:26]} 11. Qc2 {[%emt 0:05:17]} bxc6 {[%emt 0:01:08]} 12. b4 {[%emt 0:01:08]} Ne6 {[%emt 0:02:03]} 13. Qd3 {[%emt 0:13:53]} Qc7 {[%emt 0:03:07]} 14. Be3 {[%emt 0:05:00]} Bb7 {[%emt 0:02:10]} 15. h3 {[%emt 0:05:41]} Rad8 {[%emt 0:08:40]} 16. Bxa7 {[%emt 0:04:06]} c5 {[%emt 0:05:56]} 17. Nb5 {[%emt 0:05:25]} Qc6 {[%emt 0:02:20]} 18. Nd2 {[%emt 0:05:19]} Ba6 {[%emt 0:08:42]} 19. bxc5 {[%emt 0:43:26]} dxc5 {[%emt 0:54:59]} 20. Qe3 {[%emt 0:00:00]} Qb7 {[%emt 0:00:00]} 21. Bxc5 {[%emt 0:00:00]} Nxc5 {[%emt 0:00:00]} 22. Qxc5 {[%emt 0:00:00]} Rxd2 {[%emt 0:00:00]} 23. Nd6 {[%emt 0:00:00]} Qe7 {[%emt 0:00:00]} 24. Rad1 {[%emt 0:00:00]} Rxa2 {[%emt 0:00:00]} 25. Qb6 {[%emt 0:00:00]} Ra8 {[%emt 0:00:00]} 26. Qb3 {[%emt 0:00:00]} Ra5 {[%emt 0:00:00]} 27. Qb6 {[%emt 0:00:00]} Ra2 {[%emt 0:00:00]} 28. Qb3 {[%emt 0:00:00]} Rxe2 {[%emt 0:00:00]} 29. Rxe2 {[%emt 0:00:00]} Ne8 {[%emt 0:00:00]} 30. Red2 {[%emt 0:00:00]} Nc7 {[%emt 0:00:00]} 31. Nxf7 {[%emt 0:00:00]} Qxf7 {[%emt 0:00:00]} 32. Rd7 {[%emt 0:00:00]} Bxc4 {[%emt 0:00:00]} 33. Qb7 {[%emt 0:00:00]} Qf6 {[%emt 0:00:00]} 34. Rxc7 {[%emt 0:00:00]} Ra2 {[%emt 0:00:00]} 35. f3 {[%emt 0:00:00]} Be6 {[%emt 0:00:00]} 36. Qb8+ {[%emt 0:00:00]} Bf8 {[%emt 0:00:00]} 37. Rc6 {[%emt 0:00:00]} Qg5 {[%emt 0:00:00]} 38. g4 {[%emt 0:00:30]} Qe3+ {[%emt 0:00:00]} 0-1

[Event "21st IPCA World Championship 2022"]
[Site "Ashdod"]
[Date "2022.05.10"]
[Round "3.12"]
[White "Shchukina, Ekaterina"]
[Black "Freiberg, Doron"]
[Result "1-0"]
[ECO "B31"]
[WhiteElo "1496"]
[BlackElo "1244"]
[Annotator "NA RC COMBH"]
[PlyCount "73"]
[EventDate "2022.05.09"]
[EventType "swiss"]
[EventCountry "ISR"]
[SourceTitle "playchess.com"]
[Source "ChessBase"]
[SourceQuality "1"]
[TimeControl "5400+30"]

1. e4 {[%emt 0:01:16]} c5 {[%emt 0:00:10]} 2. Nf3 {[%emt 0:00:09]} Nc6 {[%emt 0:00:11]} 3. Bb5 {[%emt 0:00:10]} g6 {[%emt 0:00:12]} 4. O-O {[%emt 0:01:41]} e6 {[%emt 0:01:08]} 5. Re1 {[%emt 0:01:27]} Nge7 {[%emt 0:01:32]} 6. d4 {[%emt 0:00:52]} cxd4 {[%emt 0:00:33]} 7. Nxd4 {[%emt 0:00:16]} Bg7 {[%emt 0:01:35]} 8. c3 {[%emt 0:05:00]} O-O {[%emt 0:01:15]} 9. Bg5 {[%emt 0:04:10]} a6 {[%emt 0:01:56]} 10. Bf1 {[%emt 0:03:12]} Re8 {[%emt 0:01:20]} 11. Na3 {[%emt 0:02:18]} Nxd4 {[%emt 0:05:38]} 12. cxd4 {[%emt 0:00:13]} Qb6 {[%emt 0:01:16]} 13. Nc4 {[%emt 0:00:22]} Qc7 {[%emt 1:20:14]} 14. e5 {[%emt 0:05:38]} Nd5 {[%emt 0:00:00]} 15. Rc1 {[%emt 0:06:19]} Qb8 {[%emt 0:00:00]} 16. Nd6 {[%emt 0:05:07]} Rf8 {[%emt 0:00:00]} 17. Bc4 {[%emt 0:01:26]} f6 {[%emt 0:00:00]} 18. Bxd5 {[%emt 0:05:13]} exd5 {[%emt 0:00:00]} 19. Bh4 {[%emt 0:01:11]} g5 {[%emt 0:00:00]} 20. Bg3 {[%emt 0:00:45]} b5 {[%emt 0:00:00]} 21. exf6 {[%emt 0:04:35]} Bxf6 {[%emt 0:00:00]} 22. Nxc8 {[%emt 0:00:15]} Qb7 {[%emt 0:00:00]} 23. Ne7+ {[%emt 0:05:42]} Kh8 {[%emt 0:00:00]} 24. Rc7 {[%emt 0:01:29]} Qb6 {[%emt 0:00:00]} 25. Nxd5 {[%emt 0:00:52]} Qxd4 {[%emt 0:00:00]} 26. Qxd4 {[%emt 0:01:41]} Bxd4 {[%emt 0:00:00]} 27. Rxd7 {[%emt 0:01:53]} Bxb2 {[%emt 0:00:00]} 28. Ree7 {[%emt 0:04:23]} Rac8 {[%emt 0:00:00]} 29. Rxh7+ {[%emt 0:00:38]} Kg8 {[%emt 0:00:00]} 30. h3 {[%emt 0:02:43]} a5 {[%emt 0:00:00]} 31. Bd6 {[%emt 0:10:50]} Rc1+ {[%emt 0:00:00]} 32. Kh2 {[%emt 0:00:11]} Rxf2 {[%emt 0:00:00]} 33. Rh5 {[%emt 0:01:22]} Bf6 {[%emt 0:00:00]} 34. Nxf6+ {[%emt 0:00:39]} Rxf6 {[%emt 0:00:00]} 35. Rxg5+ {[%emt 0:24:02]} Kh8 {[%emt 0:11:00]} 36. Be5 {[%emt 0:00:30]} Rc2 {[%emt 0:00:00]} 37. Bxf6# {[%emt 0:00:00]} 1-0